bitfinex/quotes_SOLUSD_20240816
["timestamp","ask_amount","ask_price","bid_price","bid_amount"]
[1723781444241,34.65273626,142.01,142.0,0.8417755]
[1723781445049,34.23443626,142.01,141.93,20.0]
[1723781445255,7.0441,141.97,141.94,45.25098]
[1723781447950,7.0438,141.97,141.94,45.25098]
[1723781448483,64.36189,142.0,141.94,45.25098]
[1723781449864,7.0438,141.97,141.94,45.25098]
[1723781454658,7.0442,141.96,141.94,45.25098]
[1723781455870,17.7342,141.96,141.94,45.25098]
[1723781456187,17.7342,141.96,141.94,45.12549]
[1723781456373,7.0435,141.98,141.94,45.12549]
[1723781456555,7.0435,141.98,141.95,0.12549]
[1723781456760,20.0,142.0,141.94,45.12549]
[1723781456761,7.0437,141.97,141.94,45.12549]
[1723781458389,17.2337,141.97,141.94,45.12549]
[1723781460393,7.0433,141.98,141.94,45.12549]
[1723781460563,7.0433,141.98,141.95,0.12549]
[1723781462362,7.0439,141.97,141.94,45.12549]
[1723781462585,17.7339,141.97,141.94,45.12549]
[1723781462996,7.0447,141.95,141.94,45.12549]
[1723781463170,7.0446,141.96,141.94,45.12549]
[1723781463871,10.69,141.95,141.94,45.12549]
[1723781464176,17.7347,141.95,141.91,20.0]
[1723781465279,7.0453,141.94,141.89,35.3213]
[1723781466561,7.0453,141.94,141.9,0.12549]
[1723781467190,10.69,141.95,141.9,45.25098]
[1723781467191,7.0457,141.93,141.9,45.25098]
[1723781468397,7.34610958,141.98,141.91,20.0]
[1723781468598,7.0446,141.96,141.92,45.25098]
[1723781471276,7.0446,141.96,141.93,45.0]
[1723781471501,7.0446,141.96,141.92,0.25098]
[1723781472684,7.0447,141.95,141.92,0.25098]
[1723781473693,7.0444,141.96,141.92,0.25098]
[1723781475101,17.7344,141.96,141.92,0.25098]
[1723781479007,7.0444,141.96,141.92,0.25098]
[1723781480188,7.34833284,141.99,141.93,20.0]
[1723781480411,18.03833284,141.99,141.94,45.25098]
[1723781480619,10.69,141.99,141.94,45.25098]
[1723781482012,7.0435,141.98,141.94,45.25098]
[1723781482316,6.6234,142.01,141.89,35.3213]
[1723781482317,7.0442,141.96,141.89,35.3213]
[1723781482525,7.0442,141.96,141.89,55.3213]
[1723781483733,7.0442,141.96,141.9,45.25098]
[1723781484639,17.7339,141.97,141.91,20.0]
[1723781484807,17.7339,141.97,141.92,45.25098]
[1723781486948,6.6234,142.01,141.94,16.0416]
[1723781487236,14.3156,142.15,142.0,16.0416]
[1723781487528,10.69,142.07,142.01,0.25098]
[1723781487740,7.0393,142.06,142.01,45.25098]
[1723781488800,7.0398,142.05,142.01,45.25098]
[1723781489143,7.0404,142.04,142.01,45.25098]
[1723781489301,17.7299,142.05,142.01,45.25098]
[1723781490231,9.87460402,142.09,142.01,65.25098]
[1723781490411,17.7291,142.07,142.01,45.25098]
[1723781490612,7.0394,142.06,142.01,45.25098]
[1723781492613,7.0394,142.06,142.01,65.25098]
[1723781492937,7.0394,142.06,142.01,45.25098]
[1723781494241,17.7289,142.07,142.01,45.25098]
[1723781494547,17.7289,142.07,142.01,85.25098]
[1723781495411,9.87460402,142.13,142.03,20.0]
[1723781495627,10.69,142.11,142.05,16.382]
[1723781495839,10.69,142.11,142.06,45.66373877]
[1723781496056,17.7268,142.11,142.06,45.25098]
[1723781496508,7.0373,142.1,142.06,45.25098]
[1723781498941,17.7279,142.09,142.06,45.12549]
[1723781500040,10.69,142.09,142.06,45.12549]
[1723781500941,17.7269,142.11,142.06,45.12549]
[1723781501147,24.92849044,142.14,142.1,20.0]
[1723781501148,7.33989044,142.14,142.1,20.0]
[1723781501351,9.87460402,142.17,142.12,16.006]
[1723781501352,7.0341,142.17,142.12,16.006]
[1723781501511,7.0343,142.16,142.13,45.25098]
[1723781501711,7.0343,142.16,142.13,45.12549]
[1723781501939,7.0339,142.17,142.13,45.12549]
[1723781502810,17.7244,142.16,142.12,16.006]
[1723781503938,10.69,142.14,142.08,16.006]
[1723781504145,10.69,142.14,142.09,45.25098]
[1723781505042,17.7257,142.14,142.09,45.25098]
[1723781505919,7.0357,142.14,142.09,45.25098]
[1723781509362,7.036,142.13,142.09,45.25098]
[1723781509648,7.0353,142.14,142.09,45.25098]
[1723781511136,7.0364,142.12,142.08,16.006]
[1723781512229,7.0364,142.12,142.09,45.0]
[1723781513374,26.66,142.11,142.05,16.336]
[1723781513671,7.0381,142.09,142.05,16.336]
[1723781513876,33.6981,142.09,142.05,16.336]
[1723781514651,33.6981,142.09,142.06,0.12549]
[1723781514847,33.6981,142.09,142.06,45.12549]
[1723781515052,33.6981,142.09,142.06,0.12549]
[1723781516275,33.6981,142.09,142.06,45.12549]
[1723781517270,7.0384,142.08,142.05,16.336]
[1723781518666,7.0384,142.08,142.02,16.5781]
[1723781518851,7.0384,142.08,142.03,45.25098]
[1723781519461,7.0389,142.07,142.03,45.0]
[1723781520182,7.0383,142.08,142.03,45.0]
[1723781520683,7.0383,142.08,142.04,0.12549]
[1723781521686,7.0394,142.06,142.03,45.0]
[1723781523165,7.0397,142.05,141.98,15.0686]
[1723781523485,26.66,142.07,141.95,46.66]
[1723781523486,0.12549,142.02,141.95,15.0686]
[1723781523649,33.702,142.01,141.95,15.0686]
[1723781523849,26.66,142.01,141.95,15.0686]
[1723781524249,33.7018,142.01,141.95,15.0686]
[1723781525290,26.66,142.01,141.95,15.0686]
[1723781525488,7.0412,142.02,141.96,20.0]
[1723781525657,7.0412,142.02,141.97,45.12549]
[1723781525857,7.0412,142.02,141.97,0.12549]
[1723781526765,7.0412,142.02,141.97,0.25098]
[1723781526955,33.7009,142.03,141.97,0.25098]
[1723781527149,7.0413,142.02,141.97,0.25098]
[1723781527877,19.48186686,142.02,141.97,0.25098]
[1723781528083,7.0418,142.01,141.96,45.0]
[1723781528486,10.68,142.0,141.96,45.0]
[1723781530175,17.7223,142.0,141.96,45.0]
[1723781530876,7.0428,141.99,141.96,45.0]
[1723781531596,10.68,142.0,141.96,45.0]
[1723781531762,7.0428,141.99,141.96,45.0]
[1723781531965,17.7222,142.0,141.96,45.0]
[1723781532695,10.68,141.98,141.92,15.2031]
[1723781532877,10.68,141.96,141.92,15.2031]
[1723781534197,10.68,141.96,141.93,45.0]
[1723781534602,10.68,141.96,141.92,15.2031]
[1723781534775,17.7242,141.96,141.92,15.2031]
[1723781535903,7.0437,141.97,141.92,15.2031]
[1723781536102,7.0437,141.97,141.93,45.25098]
[1723781536812,0.12549,141.99,141.93,45.0]
[1723781536813,17.7242,141.96,141.93,45.0]
[1723781536980,17.7242,141.96,141.89,20.0]
[1723781537176,17.7242,141.96,141.9,45.25098]
[1723781541787,10.68,141.96,141.9,45.25098]
[1723781542183,17.7243,141.96,141.9,45.25098]
[1723781543309,7.0448,141.95,141.9,45.25098]
[1723781544792,13.3143,141.96,141.9,45.25098]
[1723781545280,23.9943,141.96,141.9,45.25098]
[1723781547678,23.9943,141.96,141.87,15.7403]
[1723781547679,10.68,141.94,141.87,15.7403]
[1723781547886,17.7253,141.94,141.87,15.7403]
[1723781548987,17.7253,141.94,141.88,45.25098]
[1723781551211,10.68,141.94,141.88,45.25098]
[1723781551423,7.0457,141.93,141.88,45.25098]
[1723781553342,10.69826748,142.0,141.91,118.69862186]
[1723781553538,10.68,141.93,141.91,118.69862186]
[1723781554211,17.7258,141.93,141.91,118.69862186]
[1723781557517,6.0149,141.96,141.91,118.69862186]
[1723781557518,7.0454,141.94,141.91,118.69862186]
[1723781557718,6.0149,141.96,141.91,118.69862186]
[1723781557940,7.0438,141.97,141.92,62.86628]
[1723781558256,6.1914,142.0,141.94,37.6126]
[1723781558414,6.1914,142.03,141.94,37.6126]
[1723781558613,10.68,142.01,141.94,17.6126]
[1723781558813,10.68,141.99,141.95,45.0]
[1723781560115,7.0423,142.0,141.95,52.0447]
[1723781560335,17.7223,142.0,141.96,7.0441]
[1723781560653,17.7223,142.0,141.95,52.0446]
[1723781561030,7.0427,141.99,141.95,52.0446]
[1723781564234,7.0427,141.99,141.95,45.0]
[1723781565248,17.7233,141.98,141.94,17.6126]
[1723781566138,7.0444,141.96,141.93,16.0326]
[1723781566329,7.0444,141.96,141.91,118.69862186]
[1723781566330,7.046,141.93,141.91,118.69862186]
[1723781567319,7.0462,141.92,141.91,118.69862186]
[1723781567527,17.7262,141.92,141.91,118.69862186]
[1723781572029,10.68,141.92,141.91,118.69862186]
[1723781572357,7.0457,141.93,141.91,118.69862186]
[1723781572852,17.7253,141.94,141.91,118.69862186]
[1723781573222,7.0457,141.93,141.91,118.69862186]
[1723781580560,17.7253,141.94,141.91,118.69862186]
[1723781580762,7.0457,141.93,141.91,118.69862186]
[1723781581981,7.0462,141.92,141.91,118.69862186]
[1723781583059,7.0458,141.93,141.91,118.69862186]
[1723781586036,7.0455,141.94,141.91,118.69862186]
[1723781588878,7.0457,141.93,141.91,118.69862186]
[1723781590491,17.7257,141.93,141.91,118.69862186]
[1723781591056,7.0462,141.92,141.91,118.69862186]
[1723781593573,28.80800979,141.92,141.91,118.69862186]
[1723781594089,27.29718,141.92,141.91,118.69862186]
[1723781594273,27.29718,141.92,141.91,7.83862186]
[1723781594592,29.05926476,141.92,141.91,7.83862186]
[1723781594749,27.29718,141.92,141.91,7.83862186]
[1723781595398,29.05924192,141.92,141.91,7.83862186]
[1723781595753,27.29718,141.92,141.91,7.83862186]
[1723781598783,37.85169,141.92,141.91,7.83862186]
[1723781599954,37.97718,141.92,141.91,7.83862186]
[1723781600588,38.10267,141.92,141.91,7.83862186]
[1723781602280,37.97718,141.92,141.91,7.83862186]
[1723781602685,37.7262,141.92,141.91,7.83862186]
[1723781602990,7.0462,141.92,141.91,7.83862186]
[1723781604391,17.7262,141.92,141.91,7.83862186]
[1723781605084,17.85169,141.92,141.91,7.83862186]
[1723781605400,17.97718,141.92,141.91,7.83862186]
[1723781605699,7.0462,141.92,141.91,7.83862186]
[1723781608096,7.17169,141.92,141.91,7.83862186]
[1723781608300,7.29718,141.92,141.91,7.83862186]
[1723781612209,27.29718,141.92,141.91,7.83862186]
[1723781612587,7.29718,141.92,141.91,7.83862186]
[1723781612804,27.29718,141.92,141.91,7.83862186]
[1723781613709,27.0462,141.92,141.91,7.83862186]
[1723781614308,7.0462,141.92,141.91,7.83862186]
[1723781614782,7.29718,141.92,141.91,7.83862186]
[1723781616693,7.0462,141.92,141.91,7.83862186]
[1723781616981,17.7258,141.93,141.91,7.83862186]
[1723781619303,7.0462,141.92,141.91,7.83862186]
[1723781622717,27.29718,141.92,141.91,7.83862186]
[1723781627100,29.0591816,141.92,141.91,7.83862186]
[1723781630812,27.29718,141.92,141.91,7.83862186]
[1723781631834,27.29718,141.92,141.86,0.8417755]
[1723781631835,24.79589,141.87,141.86,0.8417755]
[1723781632130,17.7287,141.87,141.86,0.8417755]
[1723781632291,37.85419,141.87,141.86,0.8417755]
[1723781634025,37.97968,141.87,141.86,0.8417755]
[1723781634828,37.85419,141.87,141.86,0.8417755]
[1723781635213,27.0487,141.87,141.86,0.8417755]
[1723781636430,28.81122319,141.87,141.86,0.8417755]
[1723781636639,29.06220319,141.87,141.86,0.8417755]
[1723781637039,27.29968,141.87,141.86,0.8417755]
[1723781638204,44.92138,141.87,141.86,0.8417755]
[1723781639812,44.92138,141.87,141.83,143.00961644]
[1723781639813,24.80099,141.84,141.83,143.00961644]
[1723781640019,35.60648,141.84,141.83,143.00961644]
[1723781640307,55.60648,141.84,141.83,143.00961644]
[1723781641338,55.60648,141.84,141.83,127.31201644]
[1723781642125,37.98108,141.84,141.83,127.31201644]
[1723781644706,37.7301,141.84,141.83,127.31201644]
[1723781647345,10.68,141.86,141.83,127.31201644]
[1723781647525,10.68,141.88,141.84,16.1524]
[1723781648918,20.0,141.87,141.84,16.1524]
[1723781649118,7.0493,141.86,141.84,16.1524]
[1723781651625,7.0497,141.85,141.84,16.1524]
[1723781653610,7.0493,141.86,141.84,16.1524]
[1723781657760,7.0497,141.85,141.84,16.1524]
[1723781660124,17.7292,141.86,141.84,16.1524]
[1723781660450,17.7285,141.88,141.84,16.1524]
[1723781660623,7.0495,141.86,141.84,16.1524]
[1723781661041,10.36432774,141.89,141.84,16.1524]
[1723781661233,10.68,141.9,141.84,16.1524]
[1723781662064,7.0483,141.88,141.84,23.2024]
[1723781665564,7.0475,141.9,141.85,25.09284757]
[1723781665760,7.21662497,141.91,141.86,7.0488]
[1723781665969,7.21662497,141.91,141.87,7.0486]
[1723781666160,7.0468,141.91,141.87,7.0486]
[1723781666769,23.69274228,141.93,141.88,68.4152]
[1723781666979,13.33058121,141.93,141.88,68.4152]
[1723781667137,6.28448121,141.93,141.89,17.6188]
[1723781667344,17.13430618,141.97,141.9,45.41774666]
[1723781667641,6.45430618,141.97,141.92,16.239]
[1723781667840,7.0434,141.98,141.94,7.0451]
[1723781668044,17.7228,141.99,141.94,7.0451]
[1723781668954,7.0428,141.99,141.94,5.89231425]
[1723781669157,7.0432,141.98,141.94,5.89231425]
[1723781669963,17.7238,141.97,141.93,17.6139]
[1723781671388,10.68,141.97,141.92,16.239]
[1723781671544,7.0443,141.96,141.92,16.239]
[1723781672575,7.0448,141.95,141.92,16.239]
[1723781673044,7.0443,141.96,141.92,23.2851]
[1723781675143,7.0438,141.97,141.93,7.0456]
[1723781676445,7.16879,141.98,141.93,7.0456]
[1723781676652,7.0438,141.97,141.93,7.0456]
[1723781677660,7.0443,141.96,141.92,40.9001]
[1723781677862,0.12549,141.97,141.92,16.239]
[1723781678190,7.0457,141.93,141.92,16.239]
[1723781678952,28.48156912,141.96,141.92,16.239]
[1723781679184,27.17059,141.95,141.92,16.239]
[1723781679386,20.12549,141.95,141.92,16.239]
[1723781679682,27.0448,141.95,141.92,16.239]
[1723781679844,7.0448,141.95,141.92,16.239]
[1723781681580,7.0438,141.97,141.92,23.2848]
[1723781681798,20.0,141.96,141.92,23.2848]
[1723781681968,17.6072,141.99,141.92,23.2848]
[1723781682294,27.0433,141.98,141.93,52.29648]
[1723781682476,7.0433,141.98,141.93,52.29648]
[1723781684580,7.0433,141.98,141.94,7.0451]
[1723781687388,7.0438,141.97,141.93,52.17109]
[1723781687590,7.0438,141.97,141.93,7.0456]
[1723781688159,7.0442,141.96,141.92,40.9001]
[1723781688359,7.0447,141.95,141.92,16.239]
[1723781689065,7.0443,141.96,141.92,23.2851]
[1723781689389,7.16909,141.98,141.93,44.273703]
[1723781689595,7.0437,141.97,141.93,44.273703]
[1723781690756,7.0434,141.98,141.93,51.319003]
[1723781691063,7.0428,141.99,141.96,16.0663]
[1723781691893,7.0423,142.0,141.96,23.1104]
[1723781692389,7.0423,142.0,141.96,16.0663]
[1723781693077,7.0428,141.99,141.96,16.0663]
[1723781701186,10.68,141.99,141.96,16.0663]
[1723781701410,7.0437,141.97,141.96,16.0663]
[1723781701584,7.0444,141.96,141.92,29.9023]
[1723781701999,1.76125583,141.96,141.92,22.8563]
[1723781702197,7.0449,141.95,141.92,22.8563]
[1723781702598,7.0443,141.96,141.92,29.9024]
[1723781709894,7.0438,141.97,141.93,7.0453]
[1723781710193,10.93098,142.0,141.92,40.59679]
[1723781710395,10.93098,142.0,141.93,45.25098]
[1723781710605,10.80549,142.0,141.93,45.25098]
[1723781711005,7.0436,141.98,141.94,7.0452]
[1723781712331,7.0428,141.99,141.95,7.0447]
[1723781713124,7.0428,141.99,141.96,16.0602]
[1723781715900,17.7224,142.0,141.96,16.0602]
[1723781716430,8.80354962,141.99,141.96,16.0602]
[1723781716600,10.68,141.98,141.96,16.0602]
[1723781716806,12.56639244,141.98,141.93,15.2026]
[1723781717015,10.68,141.96,141.93,15.2026]
[1723781718841,17.7245,141.96,141.93,15.2026]
[1723781719043,7.0452,141.94,141.93,15.2026]
[1723781719408,17.7252,141.94,141.9,15.2012]
[1723781720242,7.046,141.93,141.9,15.2012]
[1723781720402,7.0463,141.92,141.9,15.2012]
[1723781720734,17.7263,141.92,141.9,15.2012]
[1723781722945,7.0458,141.93,141.9,15.2012]
[1723781724238,7.0462,141.92,141.9,15.2012]
[1723781725238,7.048,141.89,141.86,15.8859]
[1723781725405,20.25098,141.91,141.86,15.8859]
[1723781725406,7.0483,141.88,141.86,15.8859]
[1723781726447,7.0501,141.85,141.82,21.7139]
[1723781726606,7.0493,141.86,141.82,21.7139]
[1723781727221,1.7624623,141.87,141.82,21.7139]
[1723781727365,10.80549,141.86,141.82,15.5412]
[1723781727665,7.0497,141.85,141.82,15.5412]
[1723781727831,7.17469,141.86,141.82,15.5412]
[1723781728036,7.0497,141.85,141.82,15.5412]
[1723781731655,0.12549,141.86,141.82,22.5921]
[1723781731656,7.0492,141.86,141.82,22.5921]
[1723781732973,7.0463,141.92,141.87,7.0483]
[1723781733154,26.76,141.93,141.86,24.6713]
[1723781733875,26.76,141.93,141.87,15.2133]
[1723781734254,9.32721771,141.95,141.89,7.0475]
[1723781734486,7.0455,141.94,141.89,7.0475]
[1723781735145,7.0455,141.94,141.9,7.047]
[1723781735376,7.0455,141.94,141.89,7.0475]
[1723781735559,6.518,141.98,141.9,18.03527734]
[1723781735560,26.76,141.98,141.9,18.03527734]
[1723781735873,7.0445,141.96,141.91,7.0466]
[1723781737381,26.76,141.98,141.9,24.6644]
[1723781737680,7.0453,141.94,141.9,24.6645]
[1723781737871,7.0447,141.95,141.9,24.6645]
[1723781738497,7.0447,141.95,141.91,7.0466]
[1723781738699,7.0443,141.96,141.91,7.0466]
[1723781739263,7.0433,141.98,141.93,16.5542]
[1723781739489,24.1133,142.01,141.94,7.46133359]
[1723781739490,7.043,141.99,141.94,7.46133359]
[1723781739765,7.0432,141.98,141.94,7.46133359]
[1723781739964,7.0432,141.98,141.93,23.5998]
[1723781740193,26.76,142.0,141.93,16.5542]
[1723781740411,26.76,141.98,141.93,16.5542]
[1723781740564,7.0438,141.97,141.93,16.5542]
[1723781741193,7.0447,141.95,141.93,16.5542]
[1723781743267,33.8043,141.96,141.93,16.5542]
[1723781743889,0.12549,141.95,141.93,16.5542]
[1723781744104,7.0452,141.94,141.93,16.5542]
[1723781744986,7.0452,141.94,141.9,23.6013]
[1723781750323,33.8043,141.96,141.91,7.0463]
[1723781750503,27.0447,141.95,141.91,7.0463]
[1723781750817,27.0447,141.95,141.9,23.6013]
[1723781751801,7.0453,141.94,141.9,23.6013]
[1723781752494,7.0453,141.94,141.9,16.5542]
[1723781752820,7.0458,141.93,141.9,16.5542]
[1723781753614,8.80818186,141.92,141.9,16.5542]
[1723781753817,7.0466,141.92,141.9,16.5542]
[1723781753987,8.80839809,141.92,141.9,16.5542]
[1723781755329,7.0466,141.92,141.9,16.5542]
[1723781756194,7.0458,141.93,141.9,16.5542]
[1723781763220,7.0458,141.93,141.86,23.8974]
[1723781763221,20.12549,141.92,141.86,40.3642]
[1723781763405,28.64710991,141.92,141.86,40.3642]
[1723781763607,28.64710991,141.92,141.86,34.089]
[1723781763815,7.0473,141.9,141.86,41.1381]
[1723781765037,58.9637,141.98,141.88,17.6201]
[1723781765237,10.7,141.95,141.88,17.6201]
[1723781765899,58.9637,141.98,141.9,17.6176]
[1723781765900,23.7453,141.98,141.9,17.6176]
[1723781766225,26.73,142.0,141.91,15.40238]
[1723781766432,26.73,142.0,141.91,60.40238]
[1723781766801,26.73,142.0,141.93,7.0457]
[1723781767027,7.0434,141.98,141.93,7.0457]
[1723781767337,7.0429,141.99,141.94,52.0451]
[1723781767516,7.0423,142.0,141.95,15.1514]
[1723781767711,7.0423,142.0,141.96,0.41581193]
[1723781767916,7.0419,142.01,141.96,37.6101]
[1723781768112,7.0419,142.01,141.97,45.12549]
[1723781769129,7.0419,142.01,141.97,52.16909]
[1723781770042,7.0422,142.0,141.96,24.6542]
[1723781770539,7.0427,141.99,141.95,15.1514]
[1723781770742,26.85549,142.0,141.95,15.1514]
[1723781771046,0.12549,141.97,141.91,16.3452]
[1723781771209,7.0458,141.93,141.91,16.3452]
[1723781771409,7.0453,141.94,141.91,16.3452]
[1723781771632,7.0447,141.95,141.91,23.3918]
[1723781771941,26.73,141.96,141.91,16.3452]
[1723781772113,7.0456,141.94,141.91,16.3452]
[1723781772708,7.0448,141.95,141.91,16.3452]
[1723781772950,7.0443,141.96,141.91,23.3918]
[1723781773310,7.0449,141.95,141.91,23.3918]
[1723781773537,7.0449,141.95,141.91,16.3452]
[1723781773911,7.0449,141.95,141.91,23.3918]
[1723781775048,0.12549,141.97,141.91,33.9612]
[1723781775231,7.0433,141.98,141.93,7.0453]
[1723781776325,7.0433,141.98,141.92,45.25098]
[1723781776326,7.0433,141.98,141.94,7.0452]
[1723781776757,0.15792402,142.05,141.95,43.30429]
[1723781777058,7.0417,142.01,141.97,13.737826]
[1723781777532,7.0423,142.0,141.97,13.737826]
[1723781778549,7.0419,142.01,141.97,13.737826]
[1723781781963,7.0419,142.01,141.97,20.781526]
[1723781784068,26.73,142.07,142.0,7.0422]
[1723781784272,7.0401,142.05,142.0,7.0422]
[1723781784576,7.0401,142.05,142.01,7.0416]
[1723781784780,7.0401,142.05,141.99,33.7143]
[1723781785074,7.0402,142.04,142.0,52.16759]
[1723781786472,7.0398,142.05,142.01,7.0416]
[1723781788347,7.0403,142.04,141.99,33.7143]
[1723781788575,7.0403,142.04,141.99,40.7566]
[1723781789274,7.0403,142.04,142.0,52.042]
[1723781789891,7.0398,142.05,142.0,52.042]
[1723781790750,7.0393,142.06,142.02,6.4949]
[1723781790947,7.0393,142.06,142.02,6.90885924]
[1723781791353,7.0393,142.06,142.02,6.4949]
[1723781791962,7.0406,142.04,141.99,23.1502]
[1723781792177,7.0406,142.04,141.99,16.1079]
[1723781792395,26.73,142.05,141.99,16.1079]
[1723781792687,33.7698,142.05,142.0,7.0419]
[1723781792862,33.7698,142.05,142.01,7.0416]
[1723781793378,33.7698,142.05,142.0,24.647]
[1723781795269,7.0398,142.05,142.0,24.647]
[1723781797885,26.85549,142.07,142.0,17.6049]
[1723781797886,1.88573463,142.06,142.0,17.6049]
[1723781798086,26.85549,142.05,142.0,17.6049]
[1723781798278,1.76032424,142.04,142.0,17.6049]
[1723781798472,26.85549,142.05,142.0,17.6049]
[1723781798974,7.0403,142.04,142.0,24.6468]
[1723781799487,7.0403,142.04,142.0,17.6049]
[1723781799998,7.0407,142.03,142.0,17.6049]
[1723781800411,7.0413,142.02,141.99,16.1079]
[1723781801197,7.0419,142.01,141.99,16.1079]
[1723781801814,26.85549,142.01,141.95,22.7219]
[1723781801972,7.0442,141.96,141.95,16.5517]
[1723781802484,7.0442,141.96,141.92,7.0459]
[1723781805908,7.0439,141.97,141.92,7.0459]
[1723781808806,7.0433,141.98,141.93,7.0455]
[1723781809002,0.12549,141.97,141.93,7.0455]
[1723781809208,7.16959,141.97,141.92,7.046]
[1723781813080,7.0448,141.95,141.91,33.1379]
[1723781813279,7.0448,141.95,141.91,40.1845]
[1723781814814,7.0443,141.96,141.91,60.1845]
[1723781815118,7.0443,141.96,141.91,60.1841]
[1723781815303,7.0443,141.96,141.91,40.1841]
[1723781815501,7.0448,141.95,141.91,40.1841]
[1723781818717,7.0446,141.96,141.92,7.0461]
[1723781820115,0.12549,141.97,141.93,7.17109]
[1723781820322,27.0434,141.98,141.94,7.0452]
[1723781820909,27.0434,141.98,141.93,17.73929]
[1723781820910,7.0437,141.97,141.93,24.6593]
[1723781821088,7.0437,141.97,141.93,17.6138]
[1723781823227,7.0437,141.97,141.93,24.6594]
[1723781827735,14.37491274,141.99,141.94,20.0]
[1723781827934,14.37491274,141.99,141.94,65.0]
[1723781829027,14.37491274,141.99,141.95,7.0447]
[1723781829819,7.33181274,141.99,141.95,7.0447]
[1723781830026,7.33181274,141.99,141.96,7.0441]
[1723781830232,7.0424,142.0,141.96,7.0441]
[1723781830539,7.0408,142.03,141.99,7.0425]
[1723781830838,7.0412,142.02,141.99,17.6065]
[1723781831421,7.0408,142.03,141.99,24.6492]
[1723781831611,28.49041258,142.03,141.97,7.0435]
[1723781831811,7.0417,142.01,141.97,7.0435]
[1723781832007,10.68,142.02,141.97,7.0435]
[1723781832526,17.7214,142.02,141.98,7.0431]
[1723781839230,7.32511265,142.04,141.99,7.0426]
[1723781839231,7.0408,142.03,141.99,7.0426]
[1723781839563,7.0408,142.03,141.99,6.97690639]
[1723781841260,17.7213,142.02,141.98,24.6508]
[1723781843864,7.0409,142.03,141.99,7.0426]
[1723781844073,10.80549,142.04,142.0,7.0422]
[1723781844074,0.12549,142.04,142.0,7.0422]
[1723781844401,10.68,142.05,142.0,7.0422]
[1723781844993,7.0403,142.04,142.0,7.0422]
[1723781847965,7.0408,142.03,141.99,7.0426]
[1723781848161,10.68,142.03,141.98,17.6077]
[1723781848395,10.68,142.03,141.98,24.6508]
[1723781848991,7.0415,142.02,141.98,24.6508]
[1723781849905,0.12549,142.04,142.0,17.6049]
[1723781850067,27.0399,142.05,142.01,7.0416]
[1723781850268,7.0399,142.05,142.01,7.0416]
[1723781851108,14.36287058,142.09,142.03,20.0]
[1723781851318,14.36287058,142.09,142.04,52.0401]
[1723781851621,7.0381,142.09,142.04,45.0]
[1723781853236,7.0381,142.09,142.05,7.0396]
[1723781853717,7.0373,142.1,142.06,7.0391]
[1723781854033,0.12549,142.12,142.06,7.0391]
[1723781854034,7.0364,142.12,142.07,20.0]
[1723781855002,6.1451,142.14,142.1,7.0372]
[1723781855003,7.0353,142.14,142.1,7.0372]
[1723781855729,7.0353,142.14,142.09,7.0377]
[1723781856289,7.0369,142.11,142.06,7.0392]
[1723781856721,7.0369,142.11,142.07,7.0386]
[1723781856897,0.12549,142.14,142.08,7.0382]
[1723781857098,20.25098,142.14,142.08,7.0382]
[1723781857497,31.56435762,142.18,142.1,7.0371]
[1723781857714,26.67,142.17,142.1,7.0371]
[1723781858230,7.0349,142.15,142.1,7.0371]
[1723781859117,7.0359,142.13,142.09,17.5937]
[1723781859320,7.0359,142.13,142.09,24.6313]
[1723781860123,7.16089,142.14,142.09,24.6313]